Cogmind - Beta 17 @@@ ROGUE MODE // 2026.06.25 @ 20:58:59 Player: bw-k4t Result: Destroyed by YI-UF0 with YI-UF0's Doublenader Performance ------------- Evolutions (0) 0 Regions Visited (2) 400 Robots Destroyed (16) 80 Value Destroyed (305) 305 Prototype IDs (2) 40 Alien Tech Used (0) 0 Bonus (0) 0 TOTAL SCORE: 825 Bonus ------- None Cogmind --------- Core Integrity 0/250 Matter 280/300 Energy 100/100 System Corruption 0% Temperature Cool (0) Movement Core (150) Ox2 Location -10/Mines Parts ------- > --- POWER (1) -------- (None) > --- PROPULSION (2) --- (None) > --- UTILITY (2) ------ Small Storage Unit > --- WEAPON (2) ------- Grenade Launcher > --- INVENTORY (8) ---- Improved Treads Improved Treads Improved Treads Aluminum Leg High-capacity Matter Pod (145) Signal Interpreter Mining Laser Flail Peak State ------------ > --- POWER ------------ (None) > --- PROPULSION ------- Improved Treads Improved Treads > --- UTILITY ---------- Improved Heat Sink Small Storage Unit > --- WEAPON ----------- Flail Flail > --- INVENTORY -------- Light Treads Light Treads Improved Treads Improved Treads Aluminum Leg Particle Gun Flail [Rating: 13] Favorites ----------- Power Ion Engine Engine Ion Engine Propulsion Aluminum Leg Treads Improved Treads Leg Aluminum Leg Utility Small Storage Unit Device Improved Heat Sink Storage Small Storage Unit Weapon Flail Energy Gun Particle Gun Ballistic Gun Assault Rifle Launcher Grenade Launcher Impact Weapon Flail Build | -11 -10 -10 ------- Run | Yrd Mat Min Slots Evolved . | . . . Power . | . . . Propulsion . | . . . Utility . | . . . Weapon . | . . . Parts Attached 17 | 6 8 3 Power 1 | 1 . . Engine 1 | 1 . . Core . | . . . Reactor . | . . . Propulsion 7 | 2 3 2 Treads 2 | . 2 . Leg 5 | 2 1 2 Wheel . | . . . Hover . | . . . Flight . | . . . Utility 3 | 1 2 . Device 2 | . 2 . Storage 1 | 1 . . Processor . | . . . Hackware . | . . . Protection . | . . . Artifact . | . . . Weapon 6 | 2 3 1 Energy Gun 2 | 1 1 . Energy Cannon . | . . . Ballistic Gun 1 | 1 . . Ballistic Cannon . | . . . Launcher 1 | . . 1 Special Weapon . | . . . Impact Weapon 2 | . 2 . Slashing Weapon . | . . . Piercing Weapon . | . . . Special Melee Weapon . | . . . Unidentified Prototypes . | . . . Parts Lost 7 | . 3 4 Power 1 | . 1 . Propulsion 4 | . 2 2 Utility 1 | . . 1 Weapon 1 | . . 1 Highest Loss Streak 4 | . 3 4 To Critical Strikes . | . . . Average Backups 6 | 2 6 7 Power . | . . . Propulsion 3 | . 3 4 Utility . | . . 1 Weapon 1 | . 1 2 Tool/Special . | . . . Unused Backups 10 | . 2 8 Power 1 | . 1 . Propulsion 5 | . . 5 Utility 2 | . . 2 Weapon 2 | . 1 1 Tool/Special . | . . . Average Slot Usage (%) 89 | . 91 85 Engine 6 | . 9 . Treads 9 | . 4 19 Leg 17 | . 21 8 Device 12 | . 12 14 Storage 14 | . 14 14 Energy Gun 11 | . 10 14 Ballistic Gun 5 | . 8 . Launcher 1 | . . 3 Impact Weapon 9 | . 8 10 Peak Build Rating 13 | 6 13 13 Average Rating 9 | 4 8 12 On Entrance 6 | . 6 13 Avg Prop Armor Cover (%) . | . . . Naked Turns . | . . . Heaviest Build 16 | 14 16 12 Greatest Support 46 | 20 46 46 Greatest Overweight (x) 3 | . 3 1 Average Overweight (x) . | . . . Largest Inventory Capacity 8 | 8 8 8 Average Capacity 7 | 6 8 8 Most Carried 8 | 4 8 8 Average Carried 6 | 2 6 7 Final Capacity 8 | 8 8 8 Final Carried 8 | 4 8 8 Class Distribution -------------------- 89% | Mutant 10% | Scavenger-Mutant Dominant Class ---------------- Mutant | -10/Materials Mutant | -10/Mines Resources | -11 -10 -10 ----------- Run | Yrd Mat Min Matter Collected 585 | 250 140 195 Remotely . | . . . Salvage Created 347 | . 281 66 Parts 14 | . 9 5 Haulers Intercepted . | . . . Recyclers Shooed . | . . . Parts Field Recycled . | . . . Retrieved Matter . | . . . Parts Self-Destructed . | . . . Prevented . | . . . Parts Restored . | . . . Kills | -11 -10 -10 ------- Run | Yrd Mat Min Combat Hostiles Destroyed 11 | . 9 2 Melee 4 | . 3 1 Guns 7 | . 6 1 Classes Destroyed 5 | . 5 . Worker 2 | . 2 . Builder 1 | . 1 . Watcher 2 | . 2 . Swarmer 6 | . 6 . Grunt 5 | . 3 2 Best Kill Streak 5 | . 5 1 Combat Bots Only 3 | . 3 1 Max Kills in Single Turn 2 | . 2 1 Gunslinging 1 | . 1 . Exploded . | . . . Melee 1 | . 1 1 Uniques/NPCs Destroyed . | . . . Combat | -11 -10 -10 -------- Run | Yrd Mat Min Hostile Shots Fired 113 | . 94 19 Missed 33 | . 30 3 Hits 80 | . 64 16 Projectile 80 | . 64 16 AOE 9 | . . 9 Critical Strikes 1 | . . 1 Damage Taken 1053 | . 574 479 Core 259 | . 83 176 Absorbed by Shields . | . . . Core Remaining (%) 100 | 100 . . Volleys Fired 32 | . 26 6 Largest 2 | . 2 2 Hottest 95 | . 65 95 Shots Fired 42 | . 35 7 Gun 39 | . 35 4 Cannon . | . . . Launcher 3 | . . 3 Special . | . . . Kinetic 25 | . 25 . Thermal 5 | . 1 4 Explosive 3 | . . 3 Electromagnetic 9 | . 9 . Robot Hit Streak 5 | . 5 2 Robot Miss Streak 2 | . 2 2 Penetration Max . | . . . Secondary Targets 1 | . 1 . Max Gunslinging Chain 1 | . 1 . Shots Hit Robots 43 | . 35 8 Core Hits 17 | . 13 4 Critical Kills . | . . . Critical Parts Destroyed 1 | . 1 . Critical Strikes 1 | . 1 . Smash 1 | . 1 . Melee Attacks 30 | . 25 5 Impact 30 | . 25 5 Slashing . | . . . Piercing . | . . . Sneak Attacks 4 | . 4 . Combat Hostiles . | . . . Follow-up Attacks . | . . . Damage Inflicted 1106 | . 901 205 Guns 327 | . 294 33 Cannons . | . . . Explosions 20 | . . 20 Melee 759 | . 607 152 Ramming . | . . . Kinetic 259 | . 259 . Thermal 33 | . . 33 Explosive 20 | . . 20 Electromagnetic 35 | . 35 . Impact 759 | . 607 152 Slashing . | . . . Piercing . | . . . Highest Corruption . | . . . Average Corruption . | . . . Corruption Purged . | . . . Corruption Blocked . | . . . Overload Shots . | . . . Overflow Damage 135 | . 135 . Projectiles . | . . . Explosions . | . . . Melee 135 | . 135 . Knockbacks 4 | . 3 1 Impact 4 | . 3 1 Kinetic . | . . . Secondary . | . . . Self-Inflicted Damage 24 | . . 24 Shots 2 | . . 2 Rammed . | . . . Targets Rammed 1 | . 1 . Kicked 1 | . 1 . Crushed . | . . . Highest Temperature 30 | . 30 2 Average Temperature 16 | . 18 2 Received Heat Transfer 183 | . 87 96 Siege Activations . | . . . Martial Activations . | . . . Shielding Activations . | . . . Robots Disrupted . | . . . Combat Hostiles . | . . . Robots Corrupted 2 | . 2 . Combat Hostiles . | . . . Parts Fried 7 | . 7 . Impact Corruptions 6 | . 6 . Robots Melted . | . . . Combat Hostiles . | . . . Parts Melted . | . . . Heat Transferred 74 | . . 74 Parts Sabotaged . | . . . Parts Stolen . | . . . Parts Stripped . | . . . Power Chain Reactions . | . . . Alert | -11 -10 -10 ------- Run | Yrd Mat Min Maximum Alert Level . | . . . Low Security (%) 100 | 100 100 100 Level 1 . | . . . Level 2 . | . . . Level 3 . | . . . Level 4 . | . . . Level 5 . | . . . High Security . | . . . Max Security . | . . . Peak Influence 108 | . 108 40 Initial 21 | . . 21 Average 27 | . 40 7 Influence Increases 380 | . 324 56 Destroy 0b10 Robot/C 220 | . 180 40 Destroy 0b10 Robot/NC 25 | . 25 . Destroy Leader 54 | . 44 10 Successful Hack 30 | . 30 . Disable Machine 15 | . 15 . Destroy Structure 6 | . . 6 Lose Combat Pursuer 30 | . 30 . Influence Decreases 379 | . 268 111 Entered New Map 35 | . . 35 Time Decay 299 | . 228 71 Lost Part 35 | . 30 5 Lost Ally 10 | . 10 . Squads Dispatched 1 | . 1 . Investigation 1 | . 1 . Extermination . | . . . Reinforcement . | . . . Assault . | . . . Garrison . | . . . Intercept . | . . . Searches Triggered . | . . . Construction Impeded . | . . . Haulers Reinforced . | . . . Active Scanning Responses . | . . . Cargo Convoy Interrupts . | . . . Stealth | -11 -10 -10 --------- Run | Yrd Mat Min Distress Signals 2 | . 1 1 Communications Jammed . | . . . Distress Signals . | . . . Times Spotted 21 | . 16 5 Peak Tracking Total 4 | . 4 3 Tactical Retreats 1 | . 1 . Traps | -11 -10 -10 ------- Run | Yrd Mat Min Traps Triggered . | . . . Indirectly . | . . . Trap Hack Attempts . | . . . Triggered . | . . . Disarmed . | . . . Reprogrammed . | . . . Reused . | . . . Traps Extracted . | . . . Installed . | . . . Triggered . | . . . Objects Rigged 1 | . 1 . Machines | -11 -10 -10 ---------- Run | Yrd Mat Min Machines Disabled 1 | . 1 . Max in Single Turn 1 | . 1 . Machines Repaired . | . . . Machines Dismantled . | . . . Machines Sabotaged . | . . . Overloaded Fab Kills . | . . . Hacking | -11 -10 -10 --------- Run | Yrd Mat Min Machines Accessed 5 | . 4 1 Terminals 4 | . 4 . Fabricators . | . . . Repair Stations . | . . . Recycling Units . | . . . Scanalyzers . | . . . Garrison Access . | . . . Total Hacks 17 | . 16 1 Successful 12 | . 11 1 Failed 5 | . 5 . Catastrophic 1 | . 1 . Database Lockouts . | . . . Manual 7 | . 7 . Terminals 16 | . 16 . Fabricators . | . . . Repair Stations . | . . . Recycling Units . | . . . Scanalyzers . | . . . Garrison Access . | . . . Terminal Hacks 10 | . 9 1 Record 1 | . 1 . Robot Analysis 1 | . 1 . Prototype ID Bank 1 | . 1 . Open Door 1 | . . 1 Level Access Points 1 | . 1 . Emergency Access Points 1 | . 1 . Terminal Index 1 | . 1 . Alert Level 1 | . 1 . Locate Traps 1 | . 1 . Hauler Manifests 1 | . 1 . Fabricator Hacks . | . . . Repair Station Hacks . | . . . Recycling Unit Hacks . | . . . Scanalyzer . | . . . Garrison Access Hacks . | . . . Unauthorized Hacks 2 | . 2 . Terminals 2 | . 2 . Assimilate 1 | . 1 . Detonate 1 | . 1 . Fabricators . | . . . Repair Stations . | . . . Recycling Units . | . . . Scanalyzers . | . . . Garrison Access . | . . . Data Cores Recovered . | . . . Used . | . . . Hacking Detections 3 | . 3 . Full Trace Events 2 | . 2 . Feedback Events . | . . . Feedback Blocked . | . . . Robot Schematics Acquired . | . . . Robots Built . | . . . Authchips . | . . . Time . | . . . Total Robot Build Rating . | . . . Part Schematics Acquired . | . . . Parts Built . | . . . Authchips . | . . . Time . | . . . Total Part Build Rating . | . . . Part Studies Acquired . | . . . Parts Repaired . | . . . Time . | . . . Parts Recycled . | . . . Recycled Matter . | . . . Retrieved Matter . | . . . Retrieved Components . | . . . Parts Scanalyzed . | . . . Part Schematics Acquired . | . . . Parts Damaged . | . . . Bothacking | -11 -10 -10 ------------ Run | Yrd Mat Min Used RIF Installer . | . . . Robots Hacked . | . . . Non-combat . | . . . Combat . | . . . Robot Hacks Applied . | . . . Relay Couplers Released . | . . . Fabnet Peak Effective % . | . . . Robots Rewired . | . . . Allies Hacked . | . . . Hacks Repelled . | . . . Allies | -11 -10 -10 -------- Run | Yrd Mat Min Total Allies 1 | . 1 . Largest Group 1 | . 1 . Highest-Rated Group 10 | . 10 . Highest-Rated Ally 10 | . 10 . Total Orders 1 | . 1 . FOLLOW 1 | . 1 . Ally Attacks . | . . . Total Damage . | . . . Kills . | . . . Allies Corrupted . | . . . Allies Melted . | . . . Intel | -11 -10 -10 ------- Run | Yrd Mat Min Active Infowar (turns) . | . . . Robot Analysis Total 1 | . 1 . Derelict Logs Recovered 1 | . . 1 Drone Launches . | . . . Drone Recoveries . | . . . Exploration | -11 -10 -10 ------------- Run | Yrd Mat Min Turns Passed 1167 | 65 727 375 Spaces Moved 584 | 46 363 175 Core 7 | 3 4 . Treads 210 | . 71 139 Legs 367 | 43 288 36 Wheels . | . . . Hover . | . . . Flight . | . . . Fastest Speed 50 | 50 120 120 Average Speed 134 | 115 128 152 Slowest Speed 200 | 120 200 190 Overloaded Moves . | . . . Propulsion Burnouts . | . . . Robots Hopped . | . . . Potential Cave-ins . | . . . Cave-ins Triggered . | . . . Exploration Rate (%) 31 | 3 51 40 Regions Visited 2 Branch Regions 1 Pre-discovered Areas . | . . . Known Exits Taken . | . . . Unknown Exits Taken 2 | 1 1 . Scrap Searched 1 | . . 1 Spaces Dug . | . . . Terrain Destroyed 11 | . . 11 Melee . | . . . Projectile . | . . . AOE 11 | . . 11 Terrain Rammed . | . . . Walls Destroyed . | . . . Machines Disabled . | . . . Actions | -11 -10 -10 --------- Run | Yrd Mat Min Total 879 | 55 553 271 Wait 190 | . 117 73 Move 582 | 45 362 175 Hop . | . . . Pick Up 17 | 4 9 4 Fast Attach 10 | 6 3 1 Attach 1 | . 1 . Detach . | . . . Swap 7 | . 5 2 Drop 11 | . 6 5 Fire 32 | . 26 6 Melee 28 | . 23 5 Ram . | . . . Kick 1 | . 1 . Crush . | . . . Escape Stasis . | . . . Rewire . | . . . Trap . | . . . Miscellaneous . | . . . Route ------- -11/Scrapyard -10/Materials (discovered 4 exits: *Mat x3 / *Min) -10/Mines History --------- Turn | Location | Event 4 | -11/Scrapyard | Discovered new exit (range 16) 66 | -11/Scrapyard | Entered Materials 174 | -10/Materials | Identified exit to Materials 302 | -10/Materials | Build established: Mutant 584 | -10/Materials | Discovered new exit (range 13) 635 | -10/Materials | Lost 3 parts (1p2n) 793 | -10/Materials | Entered Mines 879 | -10/Mines | Met a Derelict who couldn't figure out how to use a Trap Extractor 901 | -10/Mines | Assembled infested the area 999 | -10/Mines | Found a hidden stash of uninstalled traps 1036 | -10/Mines | Core integrity fell below 50% 1071 | -10/Mines | YI-UF0 nonchalantly dropped a Grenade Launcher on the ground 1163 | -10/Mines | Core integrity fell below 20% 1168 | -10/Mines | Destroyed by YI-UF0 with YI-UF0's Doublenader Last Messages --------------- Dropped Imp. Treads. Acquired Aluminum Leg. YI-UF0 mumbles something. YI-UF0 nonchalantly drops a Grenade Launcher on the ground. Dropped Flail. Acquired Grenade Launcher. YI-UF0 mumbles something. G-34 Mercenary destroyed. The unstable cave ceiling collapses. G-47 Trooper destroyed. The unstable cave ceiling collapses. K-01 Serf collects debris. Particle Gun destroyed. Aluminum Leg destroyed. K-01 Serf collects debris. Imp. Heat Sink destroyed. Aluminum Leg destroyed. The unstable cave ceiling collapses. [Achievement: First Step to Greatness] Map ----- +----------------------------------------------------+ | ????????#"!*! ###??????## #??????? | | ????????#"!^^ ##?????????# ##??????? | | ????????#"!!!#X ## ##?????????# ##???????? | | ????????##""## #### ##????????# ?????????? | | ?????????###?# #?## #????????# ?????????? | | ?????????????# ##?# ### #???? ?????????? | | ????????????## #??# #???? ?????????? | | ???????????## #??## ######??? ?????????? | | ??????????## #???#### #????????# # ?????????? | | ?????????## ##??????# #????????# ##?????????? | | ?????????# #???????# #????????# ???????????? | | ?????????# ##???????# #????????# #??????????? | | ?????????## ##????????# #????????# #??????????? | | ??????????# ###?????????# #????????# #??????????? | | ??????????# #####???????# #????????# #??????????? | | ??????????# #???????# #???????## #??????????? | | ??????????# #??????# #??????## ##?????????? | | ??????????#### #?????# #??????# #?????????? | | ?????????????? #?????# #??????# #?????????? | | ??????????????? ##?????# #?????## #?????????? | | ??????????????# #?????## #???### #?????????? | | ??????????????# ###### ##### ##????????? | | ???????????????# ## ##???????? | | ????????????????? ###?????? | | ???????????????????## ##????? | | ?????????????????????# @ / ##???? | | ???????????????????# ## #???? | | ???????????????????## #?# #???? | | ???????????????????# g #?## &#???? | | ???????????????????# ##??#### & ##??? | | ?????????????????? ##??????## & ##?? | | ?????????????????# #????????# ##? | | ???????????????? k ###????????## #? | | ??????????????? ###???????????#### #? | | ?????????????? # ????????????####### ##? | | ???????????? ###????????????? ## ##?? | | ????????????? ?????????????????# ##= ###??? | | ????????????? ??????????????????# ## #??? | | ??????????????? ???????????????????# * #??? | | ??????????????????????????# ###### = #??? | | ???????????????????????????# #?? | | ????????????????????????????# =* #?? | | ????????????????????????????# ##### #?? | | ????????????????????????????# ??????# ##?? | | ?????????????????????????????????????## ##??? | | ??????????????????????????????????????## ##???? | | ???????????????????????????????????????## ##????? | | ????????????????????????????????????????####?????? | | ?????????????????????????????????????????????????? | | ?????????????????????????????????????????????????? | +----------------------------------------------------+ Best States ------------- Heat Dissipation 39 Energy Generation 10 Energy Capacity 250 Matter Stores 300 Matter Capacity 300 Sight Range 16 Terrain Scan Density 10 Evasion (%) 55 Recoil Reduction 2 Item Schematics ----------------- None Robot Schematics ------------------ None Fabricated ------------ Nothing Repaired ---------- Nothing Studied --------- None Alien Tech Used ----------------- None Achievements -------------- First Step to Greatness Power Corrupts Shopping List Challenges ------------ None Game ------ Seed MappingDoorRedirector Manual? 0 Play Time 00:17:15 Cumulative 3.3 hours Start 2026.06.25 @ 17:26:22 End 2026.06.25 @ 20:58:59 Sessions 2 Manual Loads 0 Difficulty Rogue Special Mode None Game No. 5 Rogue 5 Adventurer 0 Explorer 0 Win Type - Total 0 Types 0/0/0/0/0/0/0/0/0/0 Lore% 4 Gallery% 7 Achievement% 10 Wizard Run 0 Options --------- Layout 1 ASCII 1 Keyboard 0 Movement Mouse Keybinds 0 Fullscreen 1 Font 18/SmallcapsGlow Map View 50x40 Zoom Use 0% Tactical HUD 0 Map Filters NONE Filters NONE Steam 1 RUN: 4090c702-302e-4782-861d-265afe72cc9e